fUST/lending_fUST_20260525
["ID","MTS","AMOUNT","RATE_DAILY","PERIOD"]
[422976896,1779697848000,-500.0,0.00010958,2]
[422976897,1779697848000,-500.0,0.00010958,2]
[422976894,1779697848000,-500.0,0.00010958,2]
[422976893,1779697848000,-4179.72,0.00010958,2]
[422976895,1779697848000,-620.5,0.00010958,2]
[422976831,1779697848000,-500.0,0.00010958,2]
[422976882,1779697848000,-500.0,0.00010958,2]
[422976877,1779697848000,-500.0,0.00010958,2]
[422976891,1779697848000,-1731.17,0.00010958,2]
[422976864,1779697848000,-500.0,0.00010958,2]
[422976876,1779697848000,-1257.68,0.00010958,2]
[422976836,1779697848000,-834.81,0.00010958,2]
[422976835,1779697848000,-500.0,0.00010958,2]
[422976841,1779697848000,-500.0,0.00010958,2]
[422976851,1779697848000,-500.0,0.00010958,2]
[422976840,1779697848000,-873.33,0.00010958,2]
[422976845,1779697848000,-533.2019352,0.00010958,2]
[422976843,1779697848000,-1171.11,0.00010958,2]
[422976842,1779697848000,-500.0,0.00010958,2]
[422976844,1779697848000,-500.0,0.00010958,2]
[422976848,1779697848000,-1118.85,0.00010958,2]
[422976847,1779697848000,-500.0,0.00010958,2]
[422976846,1779697848000,-500.0,0.00010958,2]
[422976849,1779697848000,-515.81,0.00010958,2]
[422976834,1779697848000,-500.0,0.00010958,2]
[422976852,1779697848000,-319.3,0.00010958,2]
[422976850,1779697848000,-500.0,0.00010958,2]
[422976875,1779697848000,-500.0,0.00010958,2]
[422976857,1779697848000,-500.0,0.00010958,2]
[422976858,1779697848000,-679.4127,0.00010958,2]
[422976855,1779697848000,-546.49,0.00010958,2]
[422976860,1779697848000,-511.6,0.00010958,2]
[422976862,1779697848000,-500.0,0.00010958,2]
[422976853,1779697848000,-609.5,0.00010958,2]
[422976863,1779697848000,-622.33,0.00010958,2]
[422976859,1779697848000,-500.0,0.00010958,2]
[422976856,1779697848000,-1132.43,0.00010958,2]
[422976865,1779697848000,-620.28,0.00010958,2]
[422976854,1779697848000,-500.0,0.00010958,2]
[422976861,1779697848000,-500.0,0.00010958,2]
[422976939,1779697849000,-200.55392612,0.00011231,2]
[422976919,1779697849000,-2458.36,0.00010958,2]
[422976923,1779697849000,-1376.44,0.00010958,2]
[422976922,1779697849000,-500.0,0.00010958,2]
[422976942,1779697849000,-161.74769687,0.00011232,2]
[422976933,1779697849000,-500.0,0.00010958,2]
[422976931,1779697849000,-1590.83,0.00010958,2]
[422976934,1779697849000,-529.61464244,0.00010959,2]
[422976936,1779697849000,-15000.0,0.00010959,2]
[422976935,1779697849000,-151.45088273,0.00010959,2]
[422976918,1779697849000,-625.28,0.00010958,2]
[422976932,1779697849000,-500.0,0.00010958,2]
[422976943,1779697849000,-160.0,0.00011232,2]
[422976940,1779697849000,-200.40686215,0.00011231,2]
[422976937,1779697849000,-152.0,0.00011052,7]
[422976941,1779697849000,-160.0,0.00011232,2]
[422976944,1779697849000,-160.0,0.00011232,2]
[422976945,1779697849000,-801.0163,0.00011232,2]
[422976947,1779697849000,-500.0,0.00011232,2]
[422976950,1779697849000,-500.0,0.00011232,2]
[422976946,1779697849000,-184.58,0.00011232,2]
[422976949,1779697849000,-500.0,0.00011232,2]
[422976920,1779697849000,-5088.12,0.00010958,2]
[422976948,1779697849000,-703.8,0.00011232,2]
[422976938,1779697849000,-8126.84068206,0.000112,2]
[422976921,1779697849000,-635.84,0.00010958,2]
[422976907,1779697849000,-500.0,0.00010958,2]
[422976927,1779697849000,-500.0,0.00010958,2]
[422976952,1779697849000,-500.0,0.00011232,2]
[422976902,1779697849000,-1276.56,0.00010958,2]
[422976903,1779697849000,-2065.05,0.00010958,2]
[422976899,1779697849000,-751.98,0.00010958,2]
[422976900,1779697849000,-1364.15,0.00010958,2]
[422976901,1779697849000,-848.43,0.00010958,2]
[422976898,1779697849000,-901.22,0.00010958,2]
[422976904,1779697849000,-1939.88,0.00010958,2]
[422976906,1779697849000,-500.0,0.00010958,2]
[422976905,1779697849000,-500.0,0.00010958,2]
[422976913,1779697849000,-500.0,0.00010958,2]
[422976914,1779697849000,-17098.84,0.00010958,2]
[422976908,1779697849000,-1429.06,0.00010958,2]
[422976911,1779697849000,-1210.42,0.00010958,2]
[422976912,1779697849000,-500.0,0.00010958,2]
[422976916,1779697849000,-500.0,0.00010958,2]
[422976910,1779697849000,-1099.99,0.00010958,2]
[422976915,1779697849000,-689.81,0.00010958,2]
[422976909,1779697849000,-2485.17,0.00010958,2]
[422976924,1779697849000,-500.0,0.00010958,2]
[422976925,1779697849000,-856.54,0.00010958,2]
[422976928,1779697849000,-500.0,0.00010958,2]
[422976930,1779697849000,-4115.35,0.00010958,2]
[422976926,1779697849000,-500.0,0.00010958,2]
[422976917,1779697849000,-1760.86,0.00010958,2]
[422976929,1779697849000,-213.94,0.00010958,2]
[422976951,1779697849000,-500.0,0.00011232,2]
[422976954,1779697849000,-500.0,0.00011232,2]
[422976997,1779697849000,-188.58231882,0.00011232,2]
[422976984,1779697849000,-622.33,0.00011232,2]
[422976987,1779697849000,-620.28,0.00011232,2]
[422976980,1779697849000,-500.0,0.00011232,2]
[422976983,1779697849000,-500.0,0.00011232,2]
[422976985,1779697849000,-500.0,0.00011232,2]
[422976982,1779697849000,-500.0,0.00011232,2]
[422976988,1779697849000,-500.0,0.00011232,2]
[422976992,1779697849000,-500.0,0.00011232,2]
[422976994,1779697849000,-554.67,0.00011232,2]
[422977000,1779697849000,-500.0,0.00011232,2]
[422976996,1779697849000,-500.0,0.00011232,2]
[422977003,1779697849000,-500.0,0.00011232,2]
[422976995,1779697849000,-500.0,0.00011232,2]
[422976993,1779697849000,-500.0,0.00011232,2]
[422977004,1779697849000,-500.0,0.00011232,2]
[422976998,1779697849000,-1257.68,0.00011232,2]
[422977002,1779697849000,-500.0,0.00011232,2]
[422977001,1779697849000,-677.31,0.00011232,2]
[422976999,1779697849000,-500.0,0.00011232,2]
[422977006,1779697849000,-615.72,0.00011232,2]
[422977005,1779697849000,-423.47863348,0.00011232,2]
[422977008,1779697849000,-1510.48,0.00011232,2]
[422977007,1779697849000,-4357.7,0.00011232,2]
[422977009,1779697849000,-500.0,0.00011232,2]
[422976953,1779697849000,-866.08,0.00011232,2]
[422976986,1779697849000,-500.0,0.00011232,2]
[422976990,1779697849000,-1316.95,0.00011232,2]
[422976991,1779697849000,-500.0,0.00011232,2]
[422976981,1779697849000,-679.4127,0.00011232,2]
[422976955,1779697849000,-500.0,0.00011232,2]
[422976959,1779697849000,-500.0,0.00011232,2]
[422976967,1779697849000,-500.0,0.00011232,2]
[422976957,1779697849000,-920.97,0.00011232,2]
[422976956,1779697849000,-500.0,0.00011232,2]
[422976960,1779697849000,-500.0,0.00011232,2]
[422976958,1779697849000,-500.0,0.00011232,2]
[422976964,1779697849000,-743.05,0.00011232,2]
[422976989,1779697849000,-500.0,0.00011232,2]
[422976961,1779697849000,-834.81,0.00011232,2]
[422976963,1779697849000,-500.0,0.00011232,2]
[422976966,1779697849000,-555.5,0.00011232,2]
[422976965,1779697849000,-873.33,0.00011232,2]
[422976962,1779697849000,-500.0,0.00011232,2]
[422976970,1779697849000,-500.0,0.00011232,2]
[422976969,1779697849000,-500.0,0.00011232,2]
[422976971,1779697849000,-500.0,0.00011232,2]
[422976973,1779697849000,-515.81,0.00011232,2]
[422976972,1779697849000,-1118.85,0.00011232,2]
[422976975,1779697849000,-500.0,0.00011232,2]
[422976977,1779697849000,-500.0,0.00011232,2]
[422976974,1779697849000,-500.0,0.00011232,2]
[422976979,1779697849000,-1132.43,0.00011232,2]
[422976978,1779697849000,-546.49,0.00011232,2]
[422976968,1779697849000,-1171.11,0.00011232,2]
[422976976,1779697849000,-609.5,0.00011232,2]
[422977044,1779697850000,-1376.44,0.00011232,2]
[422977046,1779697850000,-856.54,0.00011232,2]
[422977051,1779697850000,-1590.83,0.00011232,2]
[422977053,1779697850000,-8126.84068206,0.000113,2]
[422977052,1779697850000,-500.0,0.00011232,2]
[422977047,1779697850000,-500.0,0.00011232,2]
[422977045,1779697850000,-500.0,0.00011232,2]
[422977049,1779697850000,-525.21,0.00011232,2]
[422977048,1779697850000,-500.0,0.00011232,2]
[422977043,1779697850000,-500.0,0.00011232,2]
[422977054,1779697850000,-8126.84068206,0.000115,2]
[422977050,1779697850000,-4115.35,0.00011232,2]
[422977055,1779697850000,-801.0163,0.00011506,2]
[422977068,1779697850000,-263.88,0.00011506,2]
[422977065,1779697850000,-559.92,0.00011506,2]
[422977059,1779697850000,-500.0,0.00011506,2]
[422977058,1779697850000,-500.0,0.00011506,2]
[422977063,1779697850000,-500.0,0.00011506,2]
[422977061,1779697850000,-421.3,0.00011506,2]
[422977056,1779697850000,-500.0,0.00011506,2]
[422977057,1779697850000,-703.8,0.00011506,2]
[422977060,1779697850000,-500.0,0.00011506,2]
[422977064,1779697850000,-500.0,0.00011506,2]
[422977062,1779697850000,-866.08,0.00011506,2]
[422977078,1779697850000,-500.0,0.00011506,2]
[422977079,1779697850000,-500.0,0.00011506,2]
[422977042,1779697850000,-635.84,0.00011232,2]
[422977066,1779697850000,-920.97,0.00011506,2]
[422977039,1779697850000,-625.28,0.00011232,2]
[422977010,1779697850000,-964.48,0.00011232,2]
[422977037,1779697850000,-500.0,0.00011232,2]
[422977016,1779697850000,-500.0,0.00011232,2]
[422977011,1779697850000,-2964.55,0.00011232,2]
[422977012,1779697850000,-853.49,0.00011232,2]
[422977013,1779697850000,-1731.17,0.00011232,2]
[422977015,1779697850000,-4179.72,0.00011232,2]
[422977017,1779697850000,-500.0,0.00011232,2]
[422977019,1779697850000,-901.22,0.00011232,2]
[422977018,1779697850000,-500.0,0.00011232,2]
[422977024,1779697850000,-2065.05,0.00011232,2]
[422977020,1779697850000,-751.98,0.00011232,2]
[422977021,1779697850000,-1364.15,0.00011232,2]
[422977025,1779697850000,-1939.88,0.00011232,2]
[422977022,1779697850000,-848.43,0.00011232,2]
[422977026,1779697850000,-500.0,0.00011232,2]
[422977028,1779697850000,-252.31787169,0.00011232,2]
[422977023,1779697850000,-1276.56,0.00011232,2]
[422977027,1779697850000,-500.0,0.00011232,2]
[422977040,1779697850000,-2458.36,0.00011232,2]
[422977030,1779697850000,-2485.17,0.00011232,2]
[422977034,1779697850000,-500.0,0.00011232,2]
[422977041,1779697850000,-5088.12,0.00011232,2]
[422977029,1779697850000,-1429.06,0.00011232,2]
[422977032,1779697850000,-1210.42,0.00011232,2]
[422977031,1779697850000,-1099.99,0.00011232,2]
[422977035,1779697850000,-17098.84,0.00011232,2]
[422977033,1779697850000,-500.0,0.00011232,2]
[422977036,1779697850000,-689.81,0.00011232,2]
[422977038,1779697850000,-1760.86,0.00011232,2]
[422977067,1779697850000,-253.8,0.00011506,2]
[422977014,1779697850000,-500.0,0.00011232,2]
[422977072,1779697850000,-500.0,0.00011506,2]
[422977116,1779697850000,-2964.55,0.00011506,2]
[422977106,1779697850000,-500.0,0.00011506,2]
[422977105,1779697850000,-419.77,0.00011506,2]
[422977115,1779697850000,-964.48,0.00011506,2]
[422977107,1779697850000,-677.31,0.00011506,2]
[422977108,1779697850000,-500.0,0.00011506,2]
[422977111,1779697850000,-615.72,0.00011506,2]
[422977109,1779697850000,-352.39272982,0.00011506,2]
[422977112,1779697850000,-4357.7,0.00011506,2]
[422977114,1779697850000,-500.0,0.00011506,2]
[422977113,1779697850000,-1510.48,0.00011506,2]
[422977110,1779697850000,-500.0,0.00011506,2]
[422977117,1779697850000,-853.49,0.00011506,2]
[422977104,1779697850000,-1257.68,0.00011506,2]
[422977121,1779697850000,-500.0,0.00011506,2]
[422977128,1779697850000,-1276.56,0.00011506,2]
[422977119,1779697850000,-500.0,0.00011506,2]
[422977122,1779697850000,-500.0,0.00011506,2]
[422977118,1779697850000,-1731.17,0.00011506,2]
[422977126,1779697850000,-1364.15,0.00011506,2]
[422977123,1779697850000,-285.3498218,0.00011506,2]
[422977125,1779697850000,-751.98,0.00011506,2]
[422977127,1779697850000,-848.43,0.00011506,2]
[422977124,1779697850000,-901.22,0.00011506,2]
[422977132,1779697850000,-500.0,0.00011506,2]
[422977129,1779697850000,-2065.05,0.00011506,2]
[422977131,1779697850000,-500.0,0.00011506,2]
[422977071,1779697850000,-500.0,0.00011506,2]
[422977120,1779697850000,-4179.72,0.00011506,2]
[422977100,1779697850000,-500.0,0.00011506,2]
[422977130,1779697850000,-1939.88,0.00011506,2]
[422977099,1779697850000,-500.0,0.00011506,2]
[422977102,1779697850000,-500.0,0.00011506,2]
[422977074,1779697850000,-873.33,0.00011506,2]
[422977073,1779697850000,-743.05,0.00011506,2]
[422977069,1779697850000,-500.0,0.00011506,2]
[422977077,1779697850000,-500.0,0.00011506,2]
[422977076,1779697850000,-1171.11,0.00011506,2]
[422977075,1779697850000,-500.0,0.00011506,2]
[422977081,1779697850000,-515.81,0.00011506,2]
[422977083,1779697850000,-500.0,0.00011506,2]
[422977091,1779697850000,-500.0,0.00011506,2]
[422977082,1779697850000,-500.0,0.00011506,2]
[422977084,1779697850000,-609.5,0.00011506,2]
[422977080,1779697850000,-1118.85,0.00011506,2]
[422977085,1779697850000,-500.0,0.00011506,2]
[422977070,1779697850000,-834.81,0.00011506,2]
[422977087,1779697850000,-1132.43,0.00011506,2]
[422977088,1779697850000,-635.38800386,0.00011506,2]
[422977097,1779697850000,-1316.95,0.00011506,2]
[422977096,1779697850000,-500.0,0.00011506,2]
[422977095,1779697850000,-500.0,0.00011506,2]
[422977094,1779697850000,-620.28,0.00011506,2]
[422977103,1779697850000,-500.0,0.00011506,2]
[422977093,1779697850000,-500.0,0.00011506,2]
[422977090,1779697850000,-500.0,0.00011506,2]
[422977098,1779697850000,-649.87,0.00011506,2]
[422977086,1779697850000,-546.49,0.00011506,2]
[422977101,1779697850000,-554.67,0.00011506,2]
[422977089,1779697850000,-679.4127,0.00011506,2]
[422977092,1779697850000,-622.33,0.00011506,2]
[422977177,1779697851000,-500.0,0.0001178,2]
[422977159,1779697851000,-703.8,0.0001178,2]
[422977162,1779697851000,-500.0,0.0001178,2]
[422977160,1779697851000,-500.0,0.0001178,2]
[422977163,1779697851000,-866.08,0.0001178,2]
[422977168,1779697851000,-500.0,0.0001178,2]
[422977178,1779697851000,-500.0,0.0001178,2]
[422977167,1779697851000,-920.97,0.0001178,2]
[422977176,1779697851000,-500.0,0.0001178,2]
[422977172,1779697851000,-743.05,0.0001178,2]
[422977164,1779697851000,-296.46,0.0001178,2]
[422977161,1779697851000,-500.0,0.0001178,2]
[422977174,1779697851000,-500.0,0.0001178,2]
[422977173,1779697851000,-873.33,0.0001178,2]
[422977171,1779697851000,-500.0,0.0001178,2]
[422977169,1779697851000,-834.81,0.0001178,2]
[422977175,1779697851000,-1171.11,0.0001178,2]
[422977180,1779697851000,-515.81,0.0001178,2]
[422977179,1779697851000,-1118.85,0.0001178,2]
[422977182,1779697851000,-500.0,0.0001178,2]
[422977181,1779697851000,-500.0,0.0001178,2]
[422977184,1779697851000,-500.0,0.0001178,2]
[422977156,1779697851000,-8126.84068206,0.000117,2]
[422977186,1779697851000,-1132.43,0.0001178,2]
[422977170,1779697851000,-500.0,0.0001178,2]
[422977157,1779697851000,-801.0163,0.0001178,2]
[422977142,1779697851000,-1760.86,0.00011506,2]
[422977154,1779697851000,-8126.84068206,0.000116,2]
[422977183,1779697851000,-609.5,0.0001178,2]
[422977140,1779697851000,-689.81,0.00011506,2]
[422977141,1779697851000,-500.0,0.00011506,2]
[422977133,1779697851000,-1429.06,0.00011506,2]
[422977134,1779697851000,-2485.17,0.00011506,2]
[422977136,1779697851000,-1210.42,0.00011506,2]
[422977139,1779697851000,-17098.84,0.00011506,2]
[422977138,1779697851000,-500.0,0.00011506,2]
[422977135,1779697851000,-1099.99,0.00011506,2]
[422977137,1779697851000,-500.0,0.00011506,2]
[422977143,1779697851000,-625.28,0.00011506,2]
[422977158,1779697851000,-500.0,0.0001178,2]
[422977153,1779697851000,-500.0,0.00011506,2]
[422977150,1779697851000,-500.0,0.00011506,2]
[422977151,1779697851000,-4115.35,0.00011506,2]
[422977144,1779697851000,-2458.36,0.00011506,2]
[422977145,1779697851000,-5088.12,0.00011506,2]
[422977152,1779697851000,-1590.83,0.00011506,2]
[422977148,1779697851000,-500.0,0.00011506,2]
[422977149,1779697851000,-856.54,0.00011506,2]
[422977147,1779697851000,-1376.44,0.00011506,2]
[422977155,1779697851000,-171.996,0.00011643,2]
[422977166,1779697851000,-151.0,0.0001178,2]
[422977165,1779697851000,-229.72,0.0001178,2]
[422977146,1779697851000,-635.84,0.00011506,2]
[422977191,1779697851000,-622.33,0.0001178,2]
[422977187,1779697851000,-500.0,0.0001178,2]
[422977185,1779697851000,-546.49,0.0001178,2]
[422977223,1779697851000,-1939.88,0.0001178,2]
[422977217,1779697851000,-901.22,0.0001178,2]
[422977219,1779697851000,-1364.15,0.0001178,2]
[422977218,1779697851000,-751.98,0.0001178,2]
[422977225,1779697851000,-1429.06,0.0001178,2]
[422977224,1779697851000,-500.0,0.0001178,2]
[422977222,1779697851000,-2065.05,0.0001178,2]
[422977215,1779697851000,-4179.72,0.0001178,2]
[422977221,1779697851000,-1276.56,0.0001178,2]
[422977228,1779697851000,-1210.42,0.0001178,2]
[422977238,1779697851000,-635.84,0.0001178,2]
[422977220,1779697851000,-848.43,0.0001178,2]
[422977229,1779697851000,-500.0,0.0001178,2]
[422977236,1779697851000,-2458.36,0.0001178,2]
[422977233,1779697851000,-500.0,0.0001178,2]
[422977237,1779697851000,-5088.12,0.0001178,2]
[422977232,1779697851000,-689.81,0.0001178,2]
[422977231,1779697851000,-17098.84,0.0001178,2]
[422977230,1779697851000,-500.0,0.0001178,2]
[422977234,1779697851000,-1760.86,0.0001178,2]
[422977235,1779697851000,-625.28,0.0001178,2]
[422977240,1779697851000,-500.0,0.0001178,2]
[422977241,1779697851000,-856.54,0.0001178,2]
[422977242,1779697851000,-500.0,0.0001178,2]
[422977227,1779697851000,-1099.99,0.0001178,2]
[422977226,1779697851000,-2485.17,0.0001178,2]
[422977239,1779697851000,-1376.44,0.0001178,2]
[422977213,1779697851000,-1731.17,0.0001178,2]
[422977188,1779697851000,-679.4127,0.0001178,2]
[422977216,1779697851000,-500.0,0.0001178,2]
[422977190,1779697851000,-500.0,0.0001178,2]
[422977189,1779697851000,-201.8,0.0001178,2]
[422977192,1779697851000,-620.28,0.0001178,2]
[422977193,1779697851000,-500.0,0.0001178,2]
[422977201,1779697851000,-1257.68,0.0001178,2]
[422977197,1779697851000,-500.0,0.0001178,2]
[422977198,1779697851000,-554.67,0.0001178,2]
[422977196,1779697851000,-500.0,0.0001178,2]
[422977203,1779697851000,-677.31,0.0001178,2]
[422977195,1779697851000,-1316.95,0.0001178,2]
[422977200,1779697851000,-342.09183494,0.0001178,2]
[422977199,1779697851000,-500.0,0.0001178,2]
[422977194,1779697851000,-500.0,0.0001178,2]
[422977214,1779697851000,-500.0,0.0001178,2]
[422977209,1779697851000,-1510.48,0.0001178,2]
[422977208,1779697851000,-500.0,0.0001178,2]
[422977211,1779697851000,-2964.55,0.0001178,2]
[422977210,1779697851000,-964.48,0.0001178,2]
[422977212,1779697851000,-853.49,0.0001178,2]
[422977206,1779697851000,-615.72,0.0001178,2]
[422977204,1779697851000,-500.0,0.0001178,2]
[422977205,1779697851000,-597.98080263,0.0001178,2]
[422977207,1779697851000,-4357.7,0.0001178,2]
[422977202,1779697851000,-500.0,0.0001178,2]
[422977281,1779697852000,-320.93,0.00012054,2]
[422977284,1779697852000,-500.0,0.00012054,2]
[422977283,1779697852000,-554.67,0.00012054,2]
[422977285,1779697852000,-1257.68,0.00012054,2]
[422977280,1779697852000,-1316.95,0.00012054,2]
[422977289,1779697852000,-615.72,0.00012054,2]
[422977279,1779697852000,-500.0,0.00012054,2]
[422977274,1779697852000,-679.4127,0.00012054,2]
[422977275,1779697852000,-622.33,0.00012054,2]
[422977273,1779697852000,-500.0,0.00012054,2]
[422977288,1779697852000,-500.0,0.00012054,2]
[422977278,1779697852000,-606.3,0.00012054,2]
[422977282,1779697852000,-611.09,0.00012054,2]
[422977294,1779697852000,-2964.55,0.00012054,2]
[422977286,1779697852000,-500.0,0.00012054,2]
[422977291,1779697852000,-500.0,0.00012054,2]
[422977296,1779697852000,-1731.17,0.00012054,2]
[422977295,1779697852000,-853.49,0.00012054,2]
[422977299,1779697852000,-500.0,0.00012054,2]
[422977300,1779697852000,-901.22,0.00012054,2]
[422977297,1779697852000,-402.36,0.00012054,2]
[422977298,1779697852000,-4179.72,0.00012054,2]
[422977301,1779697852000,-751.98,0.00012054,2]
[422977290,1779697852000,-4357.7,0.00012054,2]
[422977292,1779697852000,-1510.48,0.00012054,2]
[422977293,1779697852000,-964.48,0.00012054,2]
[422977276,1779697852000,-500.0,0.00012054,2]
[422977287,1779697852000,-677.31,0.00012054,2]
[422977272,1779697852000,-1132.43,0.00012054,2]
[422977249,1779697852000,-500.0,0.00012054,2]
[422977266,1779697852000,-436.52,0.00012054,2]
[422977251,1779697852000,-500.0,0.00012054,2]
[422977252,1779697852000,-500.0,0.00012054,2]
[422977248,1779697852000,-801.0163,0.00012054,2]
[422977302,1779697852000,-1364.15,0.00012054,2]
[422977246,1779697852000,-8126.84068206,0.000119,2]
[422977247,1779697852000,-8126.84068206,0.00012,2]
[422977250,1779697852000,-703.8,0.00012054,2]
[422977243,1779697852000,-4115.35,0.0001178,2]
[422977244,1779697852000,-1590.83,0.0001178,2]
[422977245,1779697852000,-8126.84068206,0.000118,2]
[422977254,1779697852000,-866.08,0.00012054,2]
[422977265,1779697852000,-500.0,0.00012054,2]
[422977255,1779697852000,-920.97,0.00012054,2]
[422977269,1779697852000,-500.0,0.00012054,2]
[422977253,1779697852000,-500.0,0.00012054,2]
[422977256,1779697852000,-500.0,0.00012054,2]
[422977257,1779697852000,-834.81,0.00012054,2]
[422977263,1779697852000,-1171.11,0.00012054,2]
[422977259,1779697852000,-500.0,0.00012054,2]
[422977260,1779697852000,-743.05,0.00012054,2]
[422977258,1779697852000,-500.0,0.00012054,2]
[422977262,1779697852000,-500.0,0.00012054,2]
[422977261,1779697852000,-873.33,0.00012054,2]
[422977267,1779697852000,-1118.85,0.00012054,2]
[422977268,1779697852000,-515.81,0.00012054,2]
[422977270,1779697852000,-609.5,0.00012054,2]
[422977277,1779697852000,-620.28,0.00012054,2]
[422977271,1779697852000,-546.49,0.00012054,2]
[422977264,1779697852000,-500.0,0.00012054,2]
[422977306,1779697852000,-1939.88,0.00012054,2]
[422977356,1779697852000,-500.0,0.00012328,2]
[422977304,1779697852000,-1276.56,0.00012054,2]
[422977338,1779697852000,-866.08,0.00012328,2]
[422977340,1779697852000,-500.0,0.00012328,2]
[422977351,1779697852000,-515.81,0.00012328,2]
[422977350,1779697852000,-1118.85,0.00012328,2]
[422977339,1779697852000,-920.97,0.00012328,2]
[422977341,1779697852000,-834.81,0.00012328,2]
[422977343,1779697852000,-500.0,0.00012328,2]
[422977342,1779697852000,-500.0,0.00012328,2]
[422977345,1779697852000,-873.33,0.00012328,2]
[422977349,1779697852000,-500.0,0.00012328,2]
[422977346,1779697852000,-500.0,0.00012328,2]
[422977347,1779697852000,-1171.11,0.00012328,2]
[422977348,1779697852000,-500.0,0.00012328,2]
[422977332,1779697852000,-801.0163,0.00012328,2]
[422977344,1779697852000,-743.05,0.00012328,2]
[422977361,1779697852000,-500.0,0.00012328,2]
[422977362,1779697852000,-1316.95,0.00012328,2]
[422977364,1779697852000,-500.0,0.00012328,2]
[422977363,1779697852000,-554.67,0.00012328,2]
[422977352,1779697852000,-500.0,0.00012328,2]
[422977357,1779697852000,-679.4127,0.00012328,2]
[422977359,1779697852000,-500.0,0.00012328,2]
[422977360,1779697852000,-620.28,0.00012328,2]
[422977358,1779697852000,-622.33,0.00012328,2]
[422977365,1779697852000,-1257.68,0.00012328,2]
[422977354,1779697852000,-546.49,0.00012328,2]
[422977305,1779697852000,-2065.05,0.00012054,2]
[422977366,1779697852000,-500.0,0.00012328,2]
[422977353,1779697852000,-609.5,0.00012328,2]
[422977335,1779697852000,-481.71,0.00012328,2]
[422977355,1779697852000,-1132.43,0.00012328,2]
[422977331,1779697852000,-8126.84068206,0.000123,2]
[422977329,1779697852000,-8126.84068206,0.000122,2]
[422977308,1779697852000,-1429.06,0.00012054,2]
[422977307,1779697852000,-500.0,0.00012054,2]
[422977313,1779697852000,-500.0,0.00012054,2]
[422977303,1779697852000,-848.43,0.00012054,2]
[422977312,1779697852000,-500.0,0.00012054,2]
[422977310,1779697852000,-1099.99,0.00012054,2]
[422977311,1779697852000,-1210.42,0.00012054,2]
[422977314,1779697852000,-17098.84,0.00012054,2]
[422977316,1779697852000,-500.0,0.00012054,2]
[422977326,1779697852000,-4115.35,0.00012054,2]
[422977317,1779697852000,-1760.86,0.00012054,2]
[422977318,1779697852000,-625.28,0.00012054,2]
[422977315,1779697852000,-689.81,0.00012054,2]
[422977309,1779697852000,-2485.17,0.00012054,2]
[422977321,1779697852000,-635.84,0.00012054,2]
[422977324,1779697852000,-856.54,0.00012054,2]
[422977333,1779697852000,-500.0,0.00012328,2]
[422977328,1779697852000,-7477.01138222,0.000121,5]
[422977337,1779697852000,-500.0,0.00012328,2]